fUSD/lending_fUSD_20250214
["ID","MTS","AMOUNT","RATE_DAILY","PERIOD"]
[353076798,1739544654395,-458.79803913,0.00013698,2]
[353076799,1739544654404,-500.0,0.00013698,2]
[353076800,1739544654414,-500.0,0.00013698,2]
[353076801,1739544654423,-500.0,0.00013698,2]
[353076802,1739544654433,-3816.98,0.00013698,2]
[353076803,1739544654442,-1329.9,0.00013698,2]
[353076804,1739544654452,-500.0,0.00013698,2]
[353076805,1739544654461,-3267.0,0.00013698,2]
[353076806,1739544654470,-779.2,0.00013698,2]
[353076807,1739544654480,-500.0,0.00013698,2]
[353076808,1739544654489,-3531.24,0.00013698,2]
[353076809,1739544654499,-500.0,0.00013698,2]
[353076810,1739544654508,-1241.61,0.00013698,2]
[353076811,1739544654517,-1017.37,0.00013698,2]
[353076812,1739544654578,-278.54446,0.00013698,2]
[353076813,1739544654587,-500.0,0.00013698,2]
[353076814,1739544654596,-291.89399481,0.00013698,2]
[353076815,1739544654606,-155.76657399,0.00013698,2]
[353076816,1739544654615,-500.0,0.00013698,2]
[353076817,1739544654624,-681.69,0.00013698,2]
[353076818,1739544654633,-500.0,0.00013698,2]
[353076819,1739544654643,-1317.51,0.00013698,2]
[353076820,1739544654652,-617.61,0.00013698,2]
[353076821,1739544654661,-542.26,0.00013698,2]
[353076822,1739544654671,-500.0,0.00013698,2]
[353076823,1739544654680,-3593.84,0.00013698,2]
[353076824,1739544654690,-4983.75,0.00013698,2]
[353076825,1739544654699,-3036.12,0.00013698,2]
[353076826,1739544654708,-500.0,0.00013698,2]
[353076827,1739544654717,-542.86,0.00013698,2]
[353076828,1739544654727,-500.0,0.00013698,2]
[353076829,1739544654736,-151.0,0.00013698,2]
[353076830,1739544654748,-500.0,0.00013698,2]
[353076831,1739544654757,-2461.67,0.00013698,2]
[353076832,1739544654766,-500.0,0.00013698,2]
[353076833,1739544654775,-500.0,0.00013698,2]
[353076834,1739544654783,-500.0,0.00013698,2]
[353076835,1739544654792,-520.9,0.00013698,2]
[353076836,1739544654801,-500.0,0.00013698,2]
[353076837,1739544654809,-3383.44,0.00013698,2]
[353076838,1739544654819,-662.81,0.00013698,2]
[353076839,1739544654828,-1911.36,0.00013698,2]
[353076840,1739544654838,-500.0,0.00013698,2]
[353076841,1739544654847,-500.0,0.00013698,2]
[353076842,1739544654856,-3689.77,0.00013698,2]
[353076843,1739544654865,-2009.32,0.00013698,2]
[353076844,1739544654874,-500.0,0.00013698,2]
[353076845,1739544654883,-970.34,0.00013698,2]
[353076846,1739544654892,-500.0,0.00013698,2]
[353076847,1739544654901,-5827.67,0.00013698,2]
[353076848,1739544654910,-500.0,0.00013698,2]
[353076849,1739544654919,-500.0,0.00013698,2]
[353076850,1739544654928,-3320.84,0.00013698,2]
[353076851,1739544654937,-500.0,0.00013698,2]
[353076852,1739544654946,-500.0,0.00013698,2]
[353076853,1739544654955,-500.0,0.00013698,2]
[353076854,1739544654964,-507.65839002,0.00013698,2]
[353076855,1739544654973,-500.0,0.00013698,2]
[353076856,1739544654982,-2598.35,0.00013698,2]
[353076857,1739544654991,-4696.51,0.00013698,2]
[353076858,1739544655000,-500.0,0.00013698,2]
[353076859,1739544655009,-500.0,0.00013698,2]
[353076860,1739544655018,-500.0,0.00013698,2]
[353076861,1739544655027,-500.0,0.00013698,2]
[353076862,1739544655036,-500.0,0.00013698,2]
[353076863,1739544655045,-2259.73,0.00013698,2]
[353076864,1739544655054,-500.77736753,0.00013698,2]
[353076865,1739544655063,-871.07,0.00013698,2]
[353076866,1739544655072,-871.07,0.00013698,2]
[353076867,1739544655082,-871.07,0.00013698,2]
[353076868,1739544655093,-500.0,0.00013698,2]
[353076869,1739544655102,-871.07,0.00013698,2]
[353076870,1739544655111,-871.07,0.00013698,2]
[353076871,1739544655119,-871.07,0.00013698,2]
[353076872,1739544655130,-500.0,0.00013698,2]
[353076873,1739544655139,-504.66153697,0.00013698,2]
[353076874,1739544655148,-871.07,0.00013698,2]
[353076875,1739544655157,-871.07,0.00013698,2]
[353076876,1739544655168,-871.07,0.00013698,2]
[353076877,1739544655177,-871.07,0.00013698,2]
[353076878,1739544655187,-4477.39,0.00013698,2]
[353076879,1739544655196,-871.07,0.00013698,2]
[353076880,1739544655205,-871.07,0.00013698,2]
[353076881,1739544655214,-151.402862,0.00013698,2]
[353076882,1739544655224,-871.07,0.00013698,2]
[353076883,1739544655233,-871.07,0.00013698,2]
[353076884,1739544655242,-1589.29,0.00013698,2]
[353076885,1739544655251,-871.07,0.00013698,2]
[353076886,1739544655261,-871.07,0.00013698,2]
[353076887,1739544655270,-871.07,0.00013698,2]
[353076888,1739544655279,-871.07,0.00013698,2]
[353076889,1739544655289,-1657.4,0.00013698,2]
[353076890,1739544655298,-500.0,0.00013698,2]
[353076891,1739544655307,-500.0,0.00013698,2]
[353076892,1739544655318,-500.0,0.00013698,2]
[353076893,1739544655327,-2233.64,0.00013698,2]
[353076894,1739544655337,-500.0,0.00013698,2]
[353076895,1739544655346,-500.0,0.00013698,2]
[353076896,1739544655355,-1417.16,0.00013698,2]
[353076897,1739544655364,-500.0,0.00013698,2]
[353076898,1739544655373,-653.7,0.00013698,2]
[353076899,1739544655382,-500.0,0.00013698,2]
[353076900,1739544655391,-500.0,0.00013698,2]
[353076901,1739544655400,-500.0,0.00013698,2]
[353076902,1739544655409,-896.69,0.00013698,2]
[353076903,1739544655418,-3209.23,0.00013698,2]
[353076904,1739544655428,-1823.66,0.00013698,2]
[353076905,1739544655437,-500.0,0.00013698,2]
[353076906,1739544655446,-259.71499453,0.00013698,2]
[353076907,1739544655455,-238.16651159,0.00013698,2]
[353076908,1739544655465,-517.09,0.00013698,2]
[353076909,1739544655474,-2492.01,0.00013698,2]
[353076910,1739544655483,-1632.35,0.00013698,2]
[353076911,1739544655493,-2703.17,0.00013698,2]
[353076912,1739544655502,-500.0,0.00013698,2]
[353076913,1739544655511,-1185.65,0.00013698,2]
[353076914,1739544655520,-500.0,0.00013698,2]
[353076915,1739544655530,-500.0,0.00013698,2]
[353076916,1739544655540,-500.0,0.00013698,2]
[353076917,1739544655549,-151.0,0.00013698,2]
[353076918,1739544655558,-500.0,0.00013698,2]
[353076919,1739544655568,-4133.86,0.00013698,2]
[353076920,1739544655577,-500.0,0.00013698,2]
[353076921,1739544655586,-500.0,0.00013698,2]
[353076922,1739544655595,-3609.04,0.00013698,2]
[353076923,1739544655605,-151.0,0.00013698,2]
[353076924,1739544655615,-199.12976345,0.00013698,2]
[353076925,1739544655624,-3754.44,0.00013698,2]
[353076926,1739544655634,-500.0,0.00013698,2]
[353076927,1739544655644,-151.0,0.00013698,2]
[353076928,1739544655653,-500.0,0.00013698,2]
[353076929,1739544655663,-151.0,0.00013698,2]
[353076930,1739544655672,-500.0,0.00013698,2]
[353076931,1739544655681,-2296.67,0.00013698,2]
[353076932,1739544655691,-500.0,0.00013698,2]
[353076933,1739544655700,-500.0,0.00013698,2]
[353076934,1739544655710,-3027.31,0.00013698,2]
[353076935,1739544655720,-500.0,0.00013698,2]
[353076936,1739544655729,-850.36,0.00013698,2]
[353076937,1739544655739,-1599.65,0.00013698,2]
[353076938,1739544655752,-151.0,0.00013698,2]
[353076939,1739544655762,-500.0,0.00013698,2]
[353076940,1739544655772,-647.71,0.00013698,2]
[353076941,1739544655782,-500.0,0.00013698,2]
[353076942,1739544655791,-546.75919147,0.00013698,2]
[353076943,1739544655800,-742.16,0.00013698,2]
[353076944,1739544655809,-500.0,0.00013698,2]
[353076945,1739544655818,-4105.41,0.00013698,2]
[353076946,1739544655827,-3914.44,0.00013698,2]
[353076947,1739544655837,-566.89,0.00013698,2]
[353076948,1739544655846,-500.0,0.00013698,2]
[353076949,1739544655856,-500.0,0.00013698,2]
[353076950,1739544655865,-500.0,0.00013698,2]
[353076951,1739544655874,-500.0,0.00013698,2]
[353076952,1739544655883,-168.27,0.00013699,2]
[353076953,1739544655893,-200.0,0.00013699,2]
[353076954,1739544655902,-500.0,0.00013699,2]
[353076955,1739544655911,-501.75592766,0.00013699,2]
[353076956,1739544655920,-500.0,0.00013699,2]
[353076957,1739544655929,-192.10500916,0.00013699,2]
[353076958,1739544655939,-919.24,0.0001371,2]
[353076959,1739544655948,-3135.9,0.00013715,2]
[353076960,1739544655957,-234.7478103,0.00013763,2]
[353076961,1739544655967,-191.0004187,0.00013769,2]
[353076962,1739544655976,-304.4228292,0.00013779,2]
[353076963,1739544655985,-500.0,0.00013779,2]
[353076964,1739544655994,-251.74,0.00013779,2]
[353076965,1739544656004,-871.07,0.00013779,2]
[353076966,1739544656013,-871.07,0.00013779,2]
[353076967,1739544656022,-871.07,0.00013779,2]
[353076968,1739544656031,-871.07,0.00013779,2]
[353076969,1739544656041,-871.07,0.00013779,2]
[353076970,1739544656050,-871.29730548,0.00013779,2]
[353076971,1739544656059,-1911.281941,0.0001378,2]
[353076972,1739544656069,-1337.301732,0.0001378,2]
[353076973,1739544656078,-500.0,0.0001378,2]
[353076974,1739544656090,-659.14,0.0001378,2]
[353076975,1739544656101,-500.0,0.0001378,2]
[353076976,1739544656110,-500.0,0.0001378,2]
[353076977,1739544656119,-502.31753846,0.0001378,2]
[353076978,1739544656131,-709.35,0.0001378,2]
[353076979,1739544656141,-500.0,0.0001378,2]
[353076980,1739544656151,-500.0,0.0001378,2]
[353076981,1739544656160,-500.0,0.0001378,2]
[353076982,1739544656171,-151.0,0.0001378,2]
[353076983,1739544656180,-181.58926,0.0001378,2]
[353076984,1739544656189,-506.61123979,0.0001378,2]
[353076985,1739544656198,-500.0,0.0001378,2]
[353076986,1739544656207,-500.0,0.0001378,2]
[353076987,1739544656221,-500.0,0.0001378,2]
[353076988,1739544656231,-631.86,0.0001378,2]
[353076989,1739544656241,-495.0,0.0001378,2]
[353076990,1739544656251,-500.0,0.0001378,2]
[353076991,1739544656260,-500.0,0.0001378,2]
[353076992,1739544656270,-500.0,0.0001378,2]
[353076993,1739544656279,-718.88,0.0001378,2]
[353076994,1739544656289,-500.0,0.0001378,2]
[353076995,1739544656298,-249.66779517,0.0001378,2]
[353076996,1739544656308,-594.18,0.0001378,2]
[353076997,1739544656318,-500.0,0.0001378,2]
[353076998,1739544656328,-621.55,0.0001378,2]
[353076999,1739544656337,-500.0,0.0001378,2]
[353077000,1739544656347,-500.0,0.0001378,2]
[353077001,1739544656356,-502.29396263,0.0001378,2]
[353077002,1739544656366,-500.0,0.0001378,2]
[353077003,1739544656375,-500.0,0.0001378,2]
[353077004,1739544656385,-500.0,0.0001378,2]
[353077005,1739544656394,-500.0,0.0001378,2]
[353077006,1739544656404,-500.0,0.0001378,2]
[353077007,1739544656414,-742.42,0.0001378,2]
[353077008,1739544656423,-500.0,0.0001378,2]
[353077009,1739544656432,-814.3,0.0001378,2]
[353077010,1739544656441,-500.0,0.0001378,2]
[353077011,1739544656451,-500.0,0.0001378,2]
[353077012,1739544656460,-500.0,0.0001378,2]
[353077013,1739544656469,-500.0,0.0001378,2]
[353077014,1739544656478,-504.54225799,0.0001378,2]
[353077015,1739544656488,-500.0,0.0001378,2]
[353077016,1739544656498,-500.0,0.0001378,2]
[353077017,1739544656508,-500.0,0.0001378,2]
[353077018,1739544656517,-539.6,0.0001378,2]
[353077019,1739544656526,-506.10275739,0.0001378,2]
[353077020,1739544656536,-500.0,0.0001378,2]
[353077021,1739544656545,-667.62,0.0001378,2]
[353077022,1739544656554,-500.0,0.0001378,2]
[353077023,1739544656563,-500.0,0.0001378,2]
[353077024,1739544656573,-500.0,0.0001378,2]
[353077025,1739544656583,-500.0,0.0001378,2]
[353077026,1739544656592,-500.0,0.0001378,2]
[353077027,1739544656601,-500.0,0.0001378,2]
[353077028,1739544656610,-524.12,0.0001378,2]
[353077029,1739544656620,-504.03475355,0.0001378,2]
[353077030,1739544656629,-506.04663859,0.0001378,2]
[353077031,1739544656639,-503.78,0.0001378,2]
[353077032,1739544656648,-616.96528684,0.0001378,2]
[353077033,1739544656657,-760.17,0.0001378,2]
[353077034,1739544656666,-1130.54,0.0001378,2]
[353077035,1739544656676,-901.3,0.0001378,2]
[353077036,1739544656685,-500.0,0.0001378,2]
[353077037,1739544656695,-500.0,0.0001378,2]
[353077038,1739544656704,-500.0,0.0001378,2]
[353077039,1739544656714,-500.0,0.0001378,2]
[353077040,1739544656723,-500.0,0.0001378,2]
[353077041,1739544656733,-500.0,0.0001378,2]
[353077042,1739544656743,-500.0,0.0001378,2]
[353077043,1739544656752,-607.24,0.0001378,2]
[353077044,1739544656762,-500.0,0.0001378,2]
[353077045,1739544656771,-609.68,0.0001378,2]
[353077046,1739544656781,-673.47,0.0001378,2]
[353077047,1739544656791,-510.89030337,0.0001378,2]
[353077048,1739544656800,-500.0,0.0001378,2]
[353077049,1739544656809,-500.0,0.0001378,2]
[353077050,1739544656819,-500.0,0.0001378,2]
[353077051,1739544656828,-500.0,0.0001378,2]
[353077052,1739544656837,-500.0,0.0001378,2]
[353077053,1739544656847,-619.31,0.0001378,2]
[353077054,1739544656856,-500.0,0.0001378,2]
[353077055,1739544656866,-500.0,0.0001378,2]
[353077056,1739544656875,-500.0,0.0001378,2]
[353077057,1739544656885,-717.98,0.0001378,2]
[353077058,1739544656894,-151.0,0.0001378,2]
[353077059,1739544656903,-151.0,0.0001378,2]
[353077060,1739544656912,-151.0,0.0001378,2]
[353077061,1739544656921,-151.0,0.0001378,2]
[353077062,1739544656931,-151.0,0.0001378,2]
[353077063,1739544656940,-151.0,0.0001378,2]
[353077064,1739544656949,-504.6708023,0.0001378,2]
[353077065,1739544656958,-151.0,0.0001378,2]
[353077066,1739544656967,-151.0,0.0001378,2]
[353077067,1739544656976,-151.0,0.0001378,2]
[353077068,1739544656986,-920.52,0.0001378,2]
[353077069,1739544656998,-151.0,0.0001378,2]
[353077070,1739544657008,-151.0,0.0001378,2]
[353077071,1739544657017,-151.0,0.0001378,2]
[353077072,1739544657027,-151.0,0.0001378,2]
[353077073,1739544657039,-151.0,0.0001378,2]
[353077074,1739544657049,-151.0,0.0001378,2]
[353077075,1739544657059,-151.0,0.0001378,2]
[353077076,1739544657070,-1053.05,0.0001378,2]
[353077077,1739544657082,-168.214539,0.0001378,2]
[353077078,1739544657093,-579.27,0.0001378,2]
[353077079,1739544657103,-500.0,0.0001378,2]
[353077080,1739544657113,-500.0,0.0001378,2]
[353077081,1739544657123,-655.19,0.0001378,2]
[353077082,1739544657133,-151.0,0.0001378,2]
[353077083,1739544657143,-151.0,0.0001378,2]
[353077084,1739544657153,-551.39,0.0001378,2]
[353077085,1739544657163,-500.0,0.0001378,2]
[353077086,1739544657174,-500.0,0.0001378,2]
[353077087,1739544657184,-916.51,0.0001378,2]
[353077088,1739544657194,-500.0,0.0001378,2]
[353077089,1739544657204,-690.09,0.0001378,2]
[353077090,1739544657214,-850.89,0.0001378,2]
[353077091,1739544657224,-500.0,0.0001378,2]
[353077092,1739544657233,-622.05,0.0001378,2]
[353077093,1739544657244,-500.0,0.0001378,2]
[353077094,1739544657254,-845.24,0.0001378,2]
[353077095,1739544657263,-2399.9,0.0001378,2]
[353077096,1739544657274,-500.0,0.0001378,2]
[353077097,1739544657284,-882.97,0.0001378,2]
[353077098,1739544657294,-500.0,0.0001378,2]
[353077099,1739544657303,-500.0,0.0001378,2]
[353077100,1739544657313,-500.0,0.0001378,2]
[353077101,1739544657323,-500.0,0.0001378,2]
[353077102,1739544657332,-500.0,0.0001378,2]
[353077103,1739544657342,-1071.14,0.0001378,2]
[353077104,1739544657352,-500.0,0.0001378,2]
[353077105,1739544657361,-520.64,0.0001378,2]
[353077106,1739544657371,-500.0,0.0001378,2]
[353077107,1739544657380,-569.33,0.0001378,2]
[353077108,1739544657390,-500.0,0.0001378,2]
[353077109,1739544657400,-500.0,0.0001378,2]
[353077110,1739544657409,-1565.53,0.0001378,2]
[353077111,1739544657419,-1214.8,0.0001378,2]
[353077112,1739544657429,-500.0,0.0001378,2]
[353077113,1739544657438,-608.54,0.0001378,2]
[353077114,1739544657448,-1087.72,0.0001378,2]
[353077115,1739544657458,-870.49,0.0001378,2]
[353077116,1739544657467,-858.99,0.0001378,2]
[353077117,1739544657477,-500.0,0.0001378,2]
[353077118,1739544657487,-500.0,0.0001378,2]
[353077119,1739544657497,-843.1,0.0001378,2]
[353077120,1739544657507,-1573.74,0.0001378,2]
[353077121,1739544657517,-1220.82,0.0001378,2]
[353077122,1739544657527,-1854.13,0.0001378,2]
[353077123,1739544657538,-651.62,0.0001378,2]
[353077124,1739544657549,-500.0,0.0001378,2]
[353077125,1739544657559,-500.0,0.0001378,2]
[353077126,1739544657570,-1294.49,0.0001378,2]
[353077127,1739544657579,-500.0,0.0001378,2]
[353077128,1739544657589,-975.09,0.0001378,2]
[353077129,1739544657599,-601.37,0.0001378,2]
[353077130,1739544657609,-500.0,0.0001378,2]
[353077131,1739544657619,-802.24,0.0001378,2]
[353077132,1739544657629,-1276.04,0.0001378,2]
[353077133,1739544657639,-855.93,0.0001378,2]
[353077134,1739544657649,-953.5,0.0001378,2]
[353077135,1739544657659,-1669.73,0.0001378,2]
[353077136,1739544657669,-500.0,0.0001378,2]
[353077137,1739544657679,-500.0,0.0001378,2]
[353077138,1739544657690,-738.15,0.0001378,2]
[353077139,1739544657700,-1316.02,0.0001378,2]
[353077140,1739544657710,-500.0,0.0001378,2]
[353077141,1739544657720,-799.32,0.0001378,2]
[353077142,1739544657730,-1136.8,0.0001378,2]
[353077143,1739544657740,-826.16,0.0001378,2]
[353077144,1739544657753,-511.86,0.0001378,2]
[353077145,1739544657763,-1440.13,0.0001378,2]
[353077146,1739544657773,-737.56,0.0001378,2]
[353077147,1739544657783,-510.22,0.0001378,2]
[353077148,1739544657793,-500.0,0.0001378,2]
[353077149,1739544657803,-500.0,0.0001378,2]
[353077150,1739544657812,-500.0,0.0001378,2]
[353077151,1739544657823,-864.12,0.0001378,2]
[353077152,1739544657833,-500.0,0.0001378,2]
[353077153,1739544657843,-931.04,0.0001378,2]
[353077154,1739544657853,-500.0,0.0001378,2]
[353077155,1739544657863,-500.0,0.0001378,2]
[353077156,1739544657873,-1342.89,0.0001378,2]
[353077157,1739544657883,-1262.7,0.0001378,2]
[353077158,1739544657893,-871.99,0.0001378,2]
[353077159,1739544657904,-365.48330491,0.0001378,2]
[353077160,1739544657915,-500.0,0.0001378,2]
[353077161,1739544657925,-701.41,0.0001378,2]
[353077162,1739544657935,-500.0,0.0001378,2]
[353077163,1739544657945,-917.64,0.0001378,2]
[353077164,1739544657955,-598.31,0.0001378,2]
[353077165,1739544657965,-1594.36,0.0001378,2]
[353077166,1739544657975,-500.0,0.0001378,2]
[353077167,1739544657985,-727.18,0.0001378,2]
[353077168,1739544657998,-500.0,0.0001378,2]
[353077169,1739544658009,-247.612038,0.0001378,2]
[353077170,1739544658019,-1209.19,0.0001378,2]
[353077171,1739544658029,-708.13,0.0001378,2]
[353077172,1739544658041,-934.97,0.0001378,2]
[353077173,1739544658051,-1581.39,0.0001378,2]
[353077174,1739544658062,-779.87,0.0001378,2]
[353077175,1739544658072,-500.0,0.0001378,2]
[353077176,1739544658083,-744.99,0.0001378,2]
[353077177,1739544658096,-726.26,0.0001378,2]
[353077178,1739544658106,-635.98,0.0001378,2]
[353077179,1739544658115,-500.0,0.0001378,2]
[353077180,1739544658125,-978.44,0.0001378,2]
[353077181,1739544658136,-1450.61,0.0001378,2]
[353077182,1739544658146,-500.0,0.0001378,2]
[353077183,1739544658156,-510.68342233,0.0001378,2]
[353077184,1739544658166,-200.820466,0.0001378,2]
[353077185,1739544658176,-500.0,0.0001378,2]
[353077186,1739544658186,-1548.4,0.0001378,2]
[353077187,1739544658196,-200.820466,0.0001378,2]
[353077188,1739544658205,-1486.59,0.0001378,2]
[353077189,1739544658216,-802.99,0.0001378,2]
[353077190,1739544658226,-1107.32,0.0001378,2]
[353077191,1739544658237,-502.57642662,0.0001378,2]
[353077192,1739544658247,-936.07,0.0001378,2]
[353077193,1739544658258,-2614.45,0.0001378,2]
[353077194,1739544658268,-710.72,0.0001378,2]
[353077195,1739544658277,-1150.16,0.0001378,2]
[353077196,1739544658288,-687.93,0.0001378,2]
[353077197,1739544658298,-592.98,0.0001378,2]
[353077198,1739544658308,-151.0,0.0001378,2]
[353077199,1739544658318,-1155.9,0.0001378,2]
[353077200,1739544658328,-1976.19,0.0001378,2]
[353077201,1739544658338,-500.0,0.0001378,2]
[353077202,1739544658347,-500.0,0.0001378,2]
[353077203,1739544658357,-1070.16,0.0001378,2]
[353077204,1739544658367,-500.0,0.0001378,2]
[353077205,1739544658377,-742.09,0.0001378,2]
[353077206,1739544658387,-500.0,0.0001378,2]
[353077207,1739544658396,-997.85,0.0001378,2]
[353077208,1739544658406,-1623.3,0.0001378,2]
[353077209,1739544658416,-761.38,0.0001378,2]
[353077210,1739544658426,-151.0,0.0001378,2]
[353077211,1739544658436,-727.42,0.0001378,2]
[353077212,1739544658446,-620.8150434,0.0001378,2]
[353077213,1739544658455,-500.0,0.0001378,2]
[353077214,1739544658465,-1903.26,0.0001378,2]
[353077215,1739544658476,-956.17,0.0001378,2]
[353077216,1739544658485,-1098.4,0.0001378,2]
[353077217,1739544658495,-513.32,0.0001378,2]
[353077218,1739544658504,-1764.08,0.0001378,2]
[353077219,1739544658514,-500.0,0.0001378,2]
[353077220,1739544658525,-2104.25,0.0001378,2]
[353077221,1739544658535,-458.72604515,0.0001378,2]
[353077222,1739544658546,-2002.33,0.0001378,2]
[353077223,1739544658556,-500.0,0.0001378,2]
[353077224,1739544658567,-841.37,0.0001378,2]
[353077225,1739544658577,-964.11,0.0001378,2]
[353077226,1739544658587,-1048.68,0.0001378,2]
[353077227,1739544658597,-553.63,0.0001378,2]
[353077228,1739544658607,-717.39,0.0001378,2]
[353077229,1739544658617,-768.42,0.0001378,2]
[353077230,1739544658628,-500.0,0.0001378,2]
[353077231,1739544658638,-2216.64,0.0001378,2]
[353077232,1739544658648,-1486.6,0.0001378,2]
[353077233,1739544658659,-1430.4,0.0001378,2]
[353077234,1739544658668,-500.0,0.0001378,2]
[353077235,1739544658678,-500.0,0.0001378,2]
[353077236,1739544658688,-586.49,0.0001378,2]
[353077237,1739544658699,-1536.77,0.0001378,2]
[353077238,1739544658709,-500.0,0.0001378,2]
[353077239,1739544658719,-251.22424344,0.0001378,2]
[353077240,1739544658729,-1368.84,0.0001378,2]
[353077241,1739544658740,-500.0,0.0001378,2]
[353077242,1739544658750,-1844.89,0.0001378,2]
[353077243,1739544658760,-1068.82,0.0001378,2]
[353077244,1739544658771,-500.0,0.0001378,2]
[353077245,1739544658782,-500.0,0.0001378,2]
[353077246,1739544658792,-500.0,0.0001378,2]
[353077247,1739544658803,-521.69,0.0001378,2]
[353077248,1739544658813,-500.0,0.0001378,2]
[353077249,1739544658822,-626.82,0.0001378,2]
[353077250,1739544658833,-720.9,0.0001378,2]
[353077251,1739544658843,-1187.63,0.0001378,2]
[353077252,1739544658852,-1264.36,0.0001378,2]
[353077253,1739544658862,-500.0,0.0001378,2]
[353077254,1739544658872,-632.35,0.0001378,2]
[353077255,1739544658882,-500.0,0.0001378,2]
[353077256,1739544658892,-576.08,0.0001378,2]
[353077257,1739544658902,-500.0,0.0001378,2]
[353077258,1739544658912,-1434.56,0.0001378,2]
[353077259,1739544658921,-2178.99,0.0001378,2]
[353077260,1739544658932,-755.49,0.0001378,2]
[353077261,1739544658942,-519.45338901,0.0001378,2]
[353077262,1739544658952,-1654.89,0.0001378,2]
[353077263,1739544658962,-500.0,0.0001378,2]
[353077264,1739544658972,-514.68652992,0.0001378,2]
[353077265,1739544658982,-500.0,0.0001378,2]
[353077266,1739544658992,-586.36,0.0001378,2]
[353077267,1739544659002,-3925.97,0.0001378,2]
[353077268,1739544659012,-520.35,0.0001378,2]
[353077269,1739544659022,-634.11,0.0001378,2]
[353077270,1739544659033,-561.73,0.0001378,2]
[353077271,1739544659043,-747.95,0.0001378,2]
[353077272,1739544659053,-500.5,0.0001378,2]
[353077273,1739544659063,-500.0,0.0001378,2]
[353077274,1739544659074,-807.32,0.0001378,2]
[353077275,1739544659085,-500.0,0.0001378,2]
[353077276,1739544659098,-500.0,0.0001378,2]
[353077277,1739544659108,-1263.6,0.0001378,2]
[353077278,1739544659118,-831.08,0.0001378,2]
[353077279,1739544659128,-457.86620816,0.0001378,2]
[353077280,1739544659138,-535.69,0.0001378,2]
[353077281,1739544659148,-1239.88,0.0001378,2]
[353077282,1739544659159,-1758.42,0.0001378,2]
[353077283,1739544659170,-500.0,0.0001378,2]
[353077284,1739544659181,-500.0,0.0001378,2]
[353077285,1739544659191,-500.0,0.0001378,2]
[353077286,1739544659201,-2699.91,0.0001378,2]
[353077287,1739544659212,-874.13,0.0001378,2]
[353077288,1739544659222,-896.36,0.0001378,2]
[353077289,1739544659232,-618.23254701,0.0001378,2]
[353077290,1739544659242,-1946.46,0.0001378,2]
[353077291,1739544659252,-1993.9,0.0001378,2]
[353077292,1739544659263,-1045.73,0.0001378,2]
[353077293,1739544659272,-2126.26,0.0001378,2]
[353077294,1739544659282,-380.28469235,0.0001378,2]
[353077295,1739544659292,-510.33180138,0.0001378,2]
[353077296,1739544659303,-500.0,0.0001378,2]
[353077297,1739544659313,-1742.35,0.0001378,2]